fUST/lending_fUST_20250811
["ID","MTS","AMOUNT","RATE_DAILY","PERIOD"]
[378476753,1754880640503,-460.0,0.00020227,2]
[378476755,1754880640512,-460.0,0.00020227,2]
[378476757,1754880640521,-463.48452483,0.00020227,2]
[378476759,1754880640530,-466.04475833,0.00020227,2]
[378476760,1754880640540,-528.84311687,0.00020227,2]
[378476762,1754880640549,-368.11425138,0.00020227,2]
[378476764,1754880640558,-460.0,0.00020227,2]
[378476766,1754880640566,-460.0,0.00020227,2]
[378476767,1754880640575,-883.65,0.00020227,2]
[378476769,1754880640585,-3392.3,0.00020227,2]
[378476771,1754880640594,-460.0,0.00020228,2]
[378476773,1754880640603,-460.0,0.00020228,2]
[378476774,1754880640612,-508.29114577,0.00020228,2]
[378476776,1754880640621,-460.0,0.00020228,2]
[378476777,1754880640630,-477.55823721,0.00020228,2]
[378476778,1754880640640,-460.0,0.00020228,2]
[378476779,1754880640649,-899.15,0.00020228,2]
[378476780,1754880640658,-664.01,0.00020228,2]
[378476781,1754880640670,-460.0,0.00020228,2]
[378476782,1754880640679,-460.0,0.00020228,2]
[378476783,1754880640689,-460.0,0.00020228,2]
[378476784,1754880640699,-460.0,0.00020228,2]
[378476785,1754880640710,-460.0,0.00020228,2]
[378476786,1754880640719,-605.76,0.00020228,2]
[378476787,1754880640728,-2032.61,0.00020228,2]
[378476788,1754880640737,-460.0,0.00020228,2]
[378476789,1754880640747,-270.57162594,0.00020228,2]
[378476790,1754880640756,-460.0,0.00020228,2]
[378476791,1754880640767,-2159.23,0.00020228,2]
[378476792,1754880640776,-460.0,0.00020228,2]
[378476793,1754880640786,-551.89,0.00020228,2]
[378476794,1754880640795,-582.02,0.00020228,2]
[378476795,1754880640804,-2233.61,0.00020228,2]
[378476796,1754880640814,-460.0,0.00020228,2]
[378476797,1754880640823,-460.0,0.00020228,2]
[378476798,1754880640833,-477.3070998,0.00020228,2]
[378476799,1754880640842,-460.0,0.00020228,2]
[378476800,1754880640852,-460.0,0.00020228,2]
[378476801,1754880640863,-469.06,0.00020228,2]
[378476802,1754880640872,-460.0,0.00020228,2]
[378476803,1754880640881,-460.0,0.00020228,2]
[378476804,1754880640891,-460.0,0.00020228,2]
[378476805,1754880640901,-209.34103985,0.00020228,2]
[378476806,1754880640910,-460.0,0.00020228,2]
[378476807,1754880640920,-1051.15,0.00020228,2]
[378476808,1754880640930,-460.0,0.00020228,2]
[378476809,1754880640939,-460.0,0.00020229,2]
[378476810,1754880640949,-1880.4,0.00020229,2]
[378476811,1754880640959,-460.0,0.00020229,2]
[378476812,1754880640968,-1435.66,0.00020229,2]
[378476813,1754880640977,-460.0,0.0002023,2]
[378476814,1754880640987,-473.59400237,0.0002023,2]
[378476815,1754880640996,-719.33,0.0002023,2]
[378476816,1754880641007,-460.0,0.0002023,2]
[378476817,1754880641017,-460.0,0.0002023,2]
[378476818,1754880641026,-460.0,0.0002023,2]
[378476819,1754880641035,-460.0,0.0002023,2]
[378476820,1754880641044,-460.0,0.0002023,2]
[378476821,1754880641053,-460.0,0.0002023,2]
[378476822,1754880641062,-460.0,0.0002023,2]
[378476823,1754880641071,-460.0,0.0002023,2]
[378476824,1754880641081,-460.0,0.0002023,2]
[378476825,1754880641090,-1245.76,0.0002023,2]
[378476826,1754880641099,-460.0,0.0002023,2]
[378476827,1754880641108,-460.0,0.0002023,2]
[378476828,1754880641117,-466.16164462,0.0002023,2]
[378476829,1754880641127,-507.731592,0.0002023,2]
[378476830,1754880641137,-460.0,0.0002023,2]
[378476831,1754880641146,-460.0,0.0002023,2]
[378476832,1754880641155,-460.0,0.0002023,2]
[378476833,1754880641165,-609.59809324,0.0002023,2]
[378476834,1754880641174,-560.88903636,0.0002023,2]
[378476835,1754880641183,-460.0,0.0002023,2]
[378476836,1754880641194,-460.0,0.0002023,2]
[378476837,1754880641203,-460.0,0.0002023,2]
[378476838,1754880641212,-460.0,0.0002023,2]
[378476840,1754880641221,-608.91,0.0002023,2]
[378476842,1754880641231,-599.6,0.0002023,2]
[378476844,1754880641240,-472.6267459,0.0002023,2]
[378476846,1754880641249,-460.0,0.0002023,2]
[378476848,1754880641258,-340.53265702,0.0002023,2]
[378476850,1754880641267,-460.0,0.0002023,2]
[378476852,1754880641276,-460.0,0.0002023,2]
[378476854,1754880641286,-460.0,0.0002023,2]
[378476856,1754880641296,-460.0,0.0002023,2]
[378476858,1754880641305,-460.0,0.0002023,2]
[378476859,1754880641314,-460.0,0.0002023,2]
[378476861,1754880641324,-460.0,0.0002023,2]
[378476863,1754880641333,-460.0,0.0002023,2]
[378476865,1754880641342,-460.0,0.0002023,2]
[378476867,1754880641351,-460.0,0.0002023,2]
[378476869,1754880641361,-461.62626756,0.0002023,2]
[378476871,1754880641371,-460.0,0.0002023,2]
[378476873,1754880641380,-460.0,0.0002023,2]
[378476875,1754880641389,-460.0,0.0002023,2]
[378476877,1754880641399,-455.0,0.0002023,2]
[378476879,1754880641409,-460.0,0.0002023,2]
[378476880,1754880641417,-460.0,0.0002023,2]
[378476881,1754880641426,-460.0,0.0002023,2]
[378476882,1754880641435,-460.0,0.0002023,2]
[378476883,1754880641444,-466.92204182,0.0002023,2]
[378476884,1754880641454,-460.0,0.0002023,2]
[378476885,1754880641463,-460.0,0.0002023,2]
[378476886,1754880641472,-436.55572523,0.0002023,2]
[378476887,1754880641481,-743.79,0.00020231,2]
[378476888,1754880641490,-460.0,0.00020231,2]
[378476889,1754880641499,-460.0,0.00020231,2]
[378476890,1754880641509,-460.0,0.00020231,2]
[378476891,1754880641518,-503.23674721,0.00020231,2]
[378476892,1754880641527,-460.0,0.00020231,2]
[378476893,1754880641536,-319.92076993,0.00020231,2]
[378476894,1754880641545,-684.54,0.00020232,2]
[378476895,1754880641554,-460.0,0.00020232,2]
[378476896,1754880641564,-460.0,0.00020232,2]
[378476897,1754880641572,-945.08,0.00020232,2]
[378476898,1754880641581,-1475.15,0.00020232,2]
[378476899,1754880641591,-1832.92,0.00020232,2]
[378476900,1754880641600,-481.99,0.00020232,2]
[378476901,1754880641609,-2083.08,0.00020232,2]
[378476902,1754880641618,-460.0,0.00020232,2]
[378476903,1754880641627,-1260.47,0.00020232,2]
[378476904,1754880641636,-500.0,0.00020273,2]
[378476905,1754880641646,-500.0,0.00020273,2]
[378476906,1754880641655,-501.66086571,0.00020273,2]
[378476907,1754880641664,-200.0,0.00020352,15]
[378476908,1754880641673,-200.0,0.00020352,15]
[378476909,1754880641683,-200.0,0.00020352,15]
[378476910,1754880641692,-200.0,0.00020352,15]
[378476911,1754880641701,-200.0,0.00020352,15]
[378476912,1754880641710,-460.0,0.00020501,2]
[378476913,1754880641719,-460.0,0.00020501,2]
[378476914,1754880641729,-460.0,0.00020501,2]
[378476915,1754880641738,-460.0,0.00020501,2]
[378476916,1754880641747,-462.39085824,0.00020501,2]
[378476917,1754880641756,-883.65,0.00020501,2]
[378476918,1754880641766,-3392.3,0.00020501,2]
[378476919,1754880641775,-460.0,0.00020502,2]
[378476920,1754880641784,-432.64427764,0.00020502,2]
[378476921,1754880641793,-460.0,0.00020502,2]
[378476922,1754880641803,-460.0,0.00020502,2]
[378476923,1754880641811,-899.15,0.00020502,2]
[378476924,1754880641821,-664.01,0.00020502,2]
[378476925,1754880641830,-460.0,0.00020502,2]
[378476926,1754880641839,-531.17713957,0.00020502,2]
[378476927,1754880641848,-460.0,0.00020502,2]
[378476928,1754880641861,-460.0,0.00020502,2]
[378476929,1754880641870,-255.62746287,0.00020502,2]
[378476930,1754880641879,-605.76,0.00020502,2]
[378476932,1754880641889,-2032.61,0.00020502,2]
[378476933,1754880641898,-460.0,0.00020502,2]
[378476934,1754880641908,-460.0,0.00020502,2]
[378476935,1754880641918,-2159.23,0.00020502,2]
[378476937,1754880641927,-460.0,0.00020502,2]
[378476938,1754880641938,-551.89,0.00020502,2]
[378476940,1754880641949,-582.02,0.00020502,2]
[378476941,1754880641959,-2233.61,0.00020502,2]
[378476943,1754880641969,-460.0,0.00020502,2]
[378476945,1754880641978,-423.42877453,0.00020502,2]
[378476947,1754880641988,-460.0,0.00020502,2]
[378476963,1754880641997,-460.0,0.00020502,2]
[378476965,1754880642136,-469.06,0.00020502,2]
[378476967,1754880642146,-485.27371789,0.00020502,2]
[378476969,1754880642155,-460.0,0.00020502,2]
[378476971,1754880642165,-460.0,0.00020502,2]
[378476973,1754880642176,-460.0,0.00020502,2]
[378476975,1754880642185,-1051.15,0.00020502,2]
[378476977,1754880642196,-460.0,0.00020502,2]
[378476979,1754880642205,-460.0,0.00020503,2]
[378476981,1754880642215,-1880.4,0.00020503,2]
[378476983,1754880642224,-460.0,0.00020503,2]
[378476985,1754880642234,-1435.66,0.00020503,2]
[378476987,1754880642243,-460.0,0.00020504,2]
[378476989,1754880642252,-719.33,0.00020504,2]
[378476991,1754880642262,-460.0,0.00020504,2]
[378476993,1754880642272,-460.0,0.00020504,2]
[378476996,1754880642284,-567.07150749,0.00020504,2]
[378476997,1754880642294,-460.0,0.00020504,2]
[378477001,1754880642304,-460.0,0.00020504,2]
[378477002,1754880642313,-465.56816467,0.00020504,2]
[378477004,1754880642323,-1245.76,0.00020504,2]
[378477008,1754880642333,-460.0,0.00020504,2]
[378477011,1754880642342,-460.0,0.00020504,2]
[378477013,1754880642352,-460.0,0.00020504,2]
[378477015,1754880642361,-460.0,0.00020504,2]
[378477017,1754880642370,-460.0,0.00020504,2]
[378477020,1754880642379,-599.6,0.00020504,2]
[378477022,1754880642388,-608.91,0.00020504,2]
[378477024,1754880642397,-460.0,0.00020504,2]
[378477026,1754880642405,-460.0,0.00020504,2]
[378477028,1754880642415,-460.0,0.00020504,2]
[378477030,1754880642425,-462.258866,0.00020504,2]
[378477033,1754880642434,-460.0,0.00020504,2]
[378477035,1754880642445,-460.0,0.00020504,2]
[378477037,1754880642454,-460.0,0.00020504,2]
[378477039,1754880642463,-460.0,0.00020504,2]
[378477041,1754880642473,-580.29633935,0.00020504,2]
[378477043,1754880642482,-460.0,0.00020504,2]
[378477045,1754880642492,-460.0,0.00020504,2]
[378477047,1754880642501,-460.0,0.00020504,2]
[378477049,1754880642510,-460.0,0.00020504,2]
[378477051,1754880642519,-460.0,0.00020504,2]
[378477053,1754880642529,-460.0,0.00020504,2]
[378477056,1754880642538,-460.0,0.00020504,2]
[378477059,1754880642547,-743.79,0.00020505,2]
[378477062,1754880642556,-460.0,0.00020505,2]
[378477064,1754880642565,-460.0,0.00020505,2]
[378477066,1754880642575,-460.0,0.00020505,2]
[378477068,1754880642584,-684.54,0.00020506,2]
[378477070,1754880642593,-460.0,0.00020506,2]
[378477072,1754880642602,-460.0,0.00020506,2]
[378477074,1754880642612,-945.08,0.00020506,2]
[378477076,1754880642621,-1475.15,0.00020506,2]
[378477078,1754880642630,-1832.92,0.00020506,2]
[378477080,1754880642640,-481.99,0.00020506,2]
[378477082,1754880642649,-2083.08,0.00020506,2]
[378477084,1754880642660,-1260.47,0.00020506,2]
[378477086,1754880642670,-8192.67287446,0.00020637,2]
[378477088,1754880642679,-646.33750976,0.00020676,2]
[378477090,1754880642688,-500.0,0.00020773,2]
[378477092,1754880642698,-500.0,0.00020773,2]
[378477094,1754880642707,-500.0,0.00020773,2]
[378477096,1754880642717,-500.0,0.00020773,2]
[378477098,1754880642726,-500.0,0.00020773,2]
[378477100,1754880642735,-500.95313084,0.00020773,2]
[378477102,1754880642744,-500.0,0.00020773,2]
[378477104,1754880642754,-500.0,0.00020773,2]
[378477106,1754880642763,-500.0,0.00020773,2]
[378477108,1754880642772,-500.0,0.00020773,2]
[378477110,1754880642782,-500.0,0.00020773,2]
[378477112,1754880642792,-527.21694621,0.00020773,2]
[378477114,1754880642800,-603.40625488,0.00020773,2]
[378477116,1754880642809,-1878.40018475,0.00020773,2]
[378477118,1754880642818,-1878.40018475,0.00020773,2]
[378477119,1754880642828,-1878.40018475,0.00020773,2]
[378477122,1754880642838,-1878.40018475,0.00020773,2]
[378477124,1754880642847,-1878.40018475,0.00020773,2]
[378477126,1754880642860,-1878.40018475,0.00020773,2]
[378477128,1754880642870,-1878.40018475,0.00020773,2]
[378477130,1754880642879,-1878.40018475,0.00020773,2]
[378477132,1754880642889,-1878.40018475,0.00020773,2]
[378477134,1754880642899,-1878.40018475,0.00020773,2]
[378477136,1754880642908,-1878.40018475,0.00020773,2]
[378477138,1754880642918,-1878.40018475,0.00020773,2]
[378477140,1754880642927,-1878.40018475,0.00020773,2]
[378477142,1754880642936,-883.65,0.00020775,2]
[378477144,1754880642946,-3392.3,0.00020775,2]
[378477146,1754880642955,-460.0,0.00020776,2]
[378477148,1754880642964,-460.0,0.00020776,2]
[378477150,1754880642973,-899.15,0.00020776,2]
[378477152,1754880642983,-664.01,0.00020776,2]
[378477154,1754880642992,-460.0,0.00020776,2]
[378477156,1754880643001,-460.0,0.00020776,2]
[378477157,1754880643009,-460.0,0.00020776,2]
[378477159,1754880643019,-605.76,0.00020776,2]
[378477161,1754880643029,-2032.61,0.00020776,2]
[378477163,1754880643038,-460.0,0.00020776,2]
[378477165,1754880643047,-460.0,0.00020776,2]
[378477167,1754880643057,-2159.23,0.00020776,2]
[378477169,1754880643066,-460.0,0.00020776,2]
[378477171,1754880643075,-551.89,0.00020776,2]
[378477173,1754880643084,-582.02,0.00020776,2]
[378477175,1754880643093,-2233.61,0.00020776,2]
[378477177,1754880643102,-460.0,0.00020776,2]
[378477179,1754880643111,-460.0,0.00020776,2]
[378477181,1754880643120,-460.0,0.00020776,2]
[378477183,1754880643129,-469.06,0.00020776,2]
[378477185,1754880643138,-460.0,0.00020776,2]
[378477187,1754880643147,-460.0,0.00020776,2]
[378477189,1754880643156,-1051.15,0.00020776,2]
[378477191,1754880643165,-460.0,0.00020776,2]
[378477193,1754880643175,-460.0,0.00020777,2]
[378477195,1754880643184,-1880.4,0.00020777,2]
[378477197,1754880643193,-460.0,0.00020777,2]
[378477199,1754880643202,-1435.66,0.00020777,2]
[378477201,1754880643212,-460.0,0.00020778,2]
[378477203,1754880643221,-719.33,0.00020778,2]
[378477205,1754880643230,-460.0,0.00020778,2]
[378477207,1754880643239,-218.65,0.00020778,2]
[378477209,1754880643249,-460.0,0.00020778,2]
[378477211,1754880643258,-1245.76,0.00020778,2]
[378477213,1754880643267,-466.13742937,0.00020778,2]
[378477215,1754880643276,-460.0,0.00020778,2]
[378477217,1754880643286,-460.0,0.00020778,2]
[378477219,1754880643295,-460.0,0.00020778,2]
[378477221,1754880643304,-599.6,0.00020778,2]
[378477223,1754880643313,-608.91,0.00020778,2]
[378477225,1754880643322,-460.0,0.00020778,2]
[378477227,1754880643331,-460.0,0.00020778,2]
[378477229,1754880643340,-460.0,0.00020778,2]
[378477231,1754880643349,-460.0,0.00020778,2]
[378477233,1754880643360,-460.0,0.00020778,2]
[378477235,1754880643370,-460.0,0.00020778,2]
[378477237,1754880643378,-460.0,0.00020778,2]
[378477239,1754880643388,-460.0,0.00020778,2]
[378477241,1754880643397,-460.0,0.00020778,2]
[378477243,1754880643406,-743.79,0.00020779,2]
[378477245,1754880643415,-460.0,0.00020779,2]
[378477247,1754880643424,-460.0,0.00020779,2]
[378477249,1754880643433,-684.54,0.0002078,2]
[378477251,1754880643442,-460.0,0.0002078,2]
[378477253,1754880643452,-460.0,0.0002078,2]
[378477255,1754880643461,-945.08,0.0002078,2]
[378477257,1754880643470,-1475.15,0.0002078,2]
[378477259,1754880643479,-1832.92,0.0002078,2]
[378477261,1754880643488,-481.99,0.0002078,2]
[378477263,1754880643497,-2083.08,0.0002078,2]
[378477265,1754880643506,-1260.47,0.0002078,2]
[378477267,1754880643515,-1008.95318751,0.00020821,2]
[378477269,1754880643524,-448.4,0.00020914,2]
[378477271,1754880643535,-160.0,0.0002097,2]
[378477273,1754880643544,-216.68257536,0.0002097,2]
[378477275,1754880643553,-160.0,0.00020982,2]
[378477277,1754880643562,-160.0,0.00020982,2]
[378477279,1754880643572,-231.9940742,0.00020982,2]
[378477281,1754880643581,-215.4905783,0.00020982,2]
[378477283,1754880643590,-312.16666667,0.00020982,2]
[378477285,1754880643599,-160.0,0.00020982,2]
[378477287,1754880643609,-843.18994796,0.00020982,2]
[378477289,1754880643626,-160.0,0.00020982,2]
[378477291,1754880643645,-461.69158338,0.00020982,2]
[378477293,1754880643656,-12671.21867243,0.00020982,2]
[378477295,1754880643665,-527.9539256,0.00020982,2]
[378477297,1754880643674,-160.0,0.00020982,2]
[378477299,1754880643683,-160.0,0.00020982,2]
[378477301,1754880643693,-160.0,0.00020989,2]
[378477303,1754880643702,-16014.87054974,0.0002099,2]
[378477305,1754880643711,-883.65,0.00021049,2]
[378477307,1754880643721,-3392.3,0.00021049,2]
[378477309,1754880643730,-460.0,0.0002105,2]
[378477311,1754880643739,-460.0,0.0002105,2]
[378477313,1754880643749,-899.15,0.0002105,2]
[378477315,1754880643758,-664.01,0.0002105,2]
[378477317,1754880643767,-460.0,0.0002105,2]
[378477319,1754880643776,-460.0,0.0002105,2]
[378477321,1754880643785,-605.76,0.0002105,2]
[378477323,1754880643796,-2032.61,0.0002105,2]
[378477325,1754880643806,-460.0,0.0002105,2]
[378477327,1754880643815,-460.0,0.0002105,2]
[378477329,1754880643824,-2159.23,0.0002105,2]
[378477331,1754880643834,-460.0,0.0002105,2]
[378477333,1754880643843,-551.89,0.0002105,2]
[378477335,1754880643853,-582.02,0.0002105,2]
[378477337,1754880643864,-2233.61,0.0002105,2]
[378477339,1754880643873,-563.31066332,0.0002105,2]
[378477341,1754880643883,-460.0,0.0002105,2]
[378477343,1754880643892,-460.0,0.0002105,2]
[378477345,1754880643902,-469.06,0.0002105,2]
[378477347,1754880643911,-460.0,0.0002105,2]
[378477349,1754880643920,-460.0,0.0002105,2]
[378477351,1754880643930,-1051.15,0.0002105,2]
[378477353,1754880643939,-460.0,0.0002105,2]
[378477355,1754880643949,-460.0,0.00021051,2]
[378477357,1754880643959,-1880.4,0.00021051,2]
[378477359,1754880643968,-460.0,0.00021051,2]
[378477361,1754880643978,-1435.66,0.00021051,2]
[378477363,1754880643987,-460.0,0.00021052,2]
[378477365,1754880643995,-719.33,0.00021052,2]
[378477367,1754880644006,-460.0,0.00021052,2]
[378477369,1754880644015,-460.0,0.00021052,2]
[378477371,1754880644024,-1245.76,0.00021052,2]
[378477373,1754880644035,-460.0,0.00021052,2]
[378477375,1754880644044,-460.0,0.00021052,2]
[378477377,1754880644054,-467.06768498,0.00021052,2]
[378477379,1754880644063,-608.91,0.00021052,2]
[378477381,1754880644073,-599.6,0.00021052,2]
[378477383,1754880644082,-460.0,0.00021052,2]
[378477385,1754880644091,-460.0,0.00021052,2]
[378477387,1754880644100,-460.0,0.00021052,2]
[378477389,1754880644109,-460.0,0.00021052,2]
[378477391,1754880644118,-460.0,0.00021052,2]
[378477393,1754880644127,-460.0,0.00021052,2]
[378477395,1754880644137,-460.0,0.00021052,2]
[378477397,1754880644146,-460.0,0.00021052,2]
[378477399,1754880644155,-743.79,0.00021053,2]
[378477401,1754880644165,-460.0,0.00021053,2]
[378477403,1754880644174,-460.0,0.00021053,2]
[378477405,1754880644183,-684.54,0.00021054,2]
[378477407,1754880644192,-460.0,0.00021054,2]
[378477409,1754880644202,-460.0,0.00021054,2]
[378477411,1754880644211,-945.08,0.00021054,2]
[378477413,1754880644220,-1475.15,0.00021054,2]
[378477415,1754880644229,-1832.92,0.00021054,2]
[378477417,1754880644238,-481.99,0.00021054,2]
[378477419,1754880644248,-2083.08,0.00021054,2]
[378477421,1754880644257,-1260.47,0.00021054,2]
[378477423,1754880644266,-160.0,0.00021075,2]
[378477425,1754880644275,-646.33750976,0.00021225,2]
[378477427,1754880644284,-866.46,0.00021319,3]
[378477429,1754880644293,-433.22,0.00021319,3]
[378477431,1754880644303,-1112.23277963,0.00021321,2]
[378477433,1754880644312,-500.0,0.00021321,2]
[378477435,1754880644322,-221.70338505,0.00021321,2]
[378477437,1754880644332,-1000.0,0.00021321,2]
[378477439,1754880644341,-1000.0,0.00021321,2]
[378477441,1754880644349,-1128.00491223,0.00021321,2]
[378477443,1754880644359,-502.63059083,0.00021321,2]
[378477445,1754880644368,-501.6936613,0.00021321,2]
[378477447,1754880644377,-883.65,0.00021323,2]
[378477449,1754880644386,-3392.3,0.00021323,2]
[378477451,1754880644396,-460.0,0.00021324,2]
[378477453,1754880644406,-460.0,0.00021324,2]
[378477455,1754880644416,-899.15,0.00021324,2]
[378477457,1754880644426,-664.01,0.00021324,2]
[378477460,1754880644436,-460.0,0.00021324,2]
[378477462,1754880644447,-460.0,0.00021324,2]
[378477463,1754880644457,-605.76,0.00021324,2]
[378477466,1754880644467,-2032.61,0.00021324,2]
[378477467,1754880644476,-460.0,0.00021324,2]
[378477469,1754880644489,-460.0,0.00021324,2]
[378477471,1754880644498,-2159.23,0.00021324,2]
[378477473,1754880644508,-460.0,0.00021324,2]
[378477475,1754880644517,-551.89,0.00021324,2]
[378477477,1754880644526,-582.02,0.00021324,2]
[378477479,1754880644535,-2233.61,0.00021324,2]
[378477481,1754880644544,-460.0,0.00021324,2]
[378477483,1754880644553,-460.0,0.00021324,2]
[378477485,1754880644562,-469.06,0.00021324,2]
[378477487,1754880644572,-460.0,0.00021324,2]
[378477489,1754880644582,-460.0,0.00021324,2]
[378477491,1754880644590,-1051.15,0.00021324,2]
[378477493,1754880644600,-460.0,0.00021324,2]
[378477495,1754880644609,-460.0,0.00021325,2]
[378477497,1754880644618,-1880.4,0.00021325,2]
[378477499,1754880644628,-460.0,0.00021325,2]
[378477501,1754880644637,-1435.66,0.00021325,2]
[378477503,1754880644648,-460.0,0.00021326,2]
[378477505,1754880644657,-719.33,0.00021326,2]
[378477507,1754880644666,-460.0,0.00021326,2]
[378477509,1754880644676,-460.0,0.00021326,2]
[378477511,1754880644686,-1245.76,0.00021326,2]
[378477513,1754880644698,-460.0,0.00021326,2]
[378477515,1754880644708,-460.0,0.00021326,2]
[378477517,1754880644718,-608.91,0.00021326,2]
[378477519,1754880644727,-599.6,0.00021326,2]
[378477521,1754880644737,-460.0,0.00021326,2]
[378477523,1754880644746,-290.08385007,0.00021326,2]
[378477525,1754880644756,-460.0,0.00021326,2]
[378477527,1754880644765,-460.0,0.00021326,2]
[378477529,1754880644774,-460.0,0.00021326,2]
[378477531,1754880644784,-460.0,0.00021326,2]
[378477533,1754880644793,-169.95536804,0.00021326,2]
[378477535,1754880644803,-460.0,0.00021326,2]
[378477537,1754880644812,-743.79,0.00021327,2]
[378477539,1754880644822,-460.0,0.00021327,2]
[378477541,1754880644832,-402.65,0.00021327,2]
[378477543,1754880644842,-684.54,0.00021328,2]
[378477545,1754880644854,-460.0,0.00021328,2]
[378477547,1754880644866,-460.0,0.00021328,2]
[378477549,1754880644876,-945.08,0.00021328,2]
[378477551,1754880644886,-1475.15,0.00021328,2]
[378477552,1754880644895,-1832.92,0.00021328,2]
[378477554,1754880644906,-481.99,0.00021328,2]
[378477556,1754880644916,-2083.08,0.00021328,2]
[378477558,1754880644925,-1260.47,0.00021328,2]
[378477560,1754880644935,-151.0,0.000214,4]
[378477562,1754880644945,-151.0,0.000214,4]
[378477564,1754880644960,-538.30451932,0.00021482,2]
[378477566,1754880644970,-469.4,0.00021499,2]
[378477568,1754880644979,-151.0,0.00021525,2]
[378477570,1754880644989,-18502.69577858,0.00021525,2]
[378477572,1754880644998,-151.0,0.00021525,2]
[378477574,1754880645008,-151.0,0.00021525,2]
[378477576,1754880645016,-151.0,0.00021525,2]
[378477578,1754880645024,-151.0,0.00021525,2]
[378477580,1754880645033,-151.0,0.00021525,2]
[378477582,1754880645043,-2183.31810187,0.00021525,2]
[378477584,1754880645053,-151.0,0.00021525,2]
[378477585,1754880645063,-151.0,0.00021525,2]
[378477587,1754880645072,-151.0,0.00021525,2]
[378477589,1754880645081,-151.0,0.00021525,2]
[378477591,1754880645091,-151.0,0.00021525,2]
[378477592,1754880645100,-151.0,0.00021525,2]
[378477593,1754880645109,-151.0,0.00021525,2]
[378477594,1754880645118,-151.0,0.00021525,2]
[378477595,1754880645128,-151.0,0.00021525,2]
[378477596,1754880645137,-151.0,0.00021525,2]
[378477597,1754880645146,-151.0,0.00021525,2]
[378477598,1754880645156,-151.0,0.00021525,2]
[378477599,1754880645167,-1228.68273162,0.0002158,2]
[378477600,1754880645177,-883.65,0.00021597,2]
[378477601,1754880645188,-3392.3,0.00021597,2]
[378477602,1754880645201,-460.0,0.00021598,2]
[378477603,1754880645211,-460.0,0.00021598,2]
[378477604,1754880645220,-899.15,0.00021598,2]
[378477605,1754880645230,-664.01,0.00021598,2]
[378477606,1754880645239,-460.0,0.00021598,2]
[378477607,1754880645249,-460.0,0.00021598,2]
[378477608,1754880645260,-605.76,0.00021598,2]
[378477609,1754880645269,-2032.61,0.00021598,2]
[378477610,1754880645279,-460.0,0.00021598,2]
[378477612,1754880645291,-460.0,0.00021598,2]
[378477613,1754880645300,-2159.23,0.00021598,2]
[378477615,1754880645309,-551.89,0.00021598,2]
[378477617,1754880645318,-582.02,0.00021598,2]
[378477618,1754880645328,-2233.61,0.00021598,2]
[378477620,1754880645337,-460.0,0.00021598,2]
[378477622,1754880645347,-460.0,0.00021598,2]
[378477624,1754880645356,-469.06,0.00021598,2]
[378477626,1754880645365,-460.0,0.00021598,2]
[378477628,1754880645375,-460.0,0.00021598,2]